Cogmind - Beta 16.1 @@@ ROGUE MODE // 2026.06.22 @ 15:52:59 Player: Lolterzard Result: Destroyed by S-27 Virus with Autogun Performance ------------- Evolutions (5) 2500 Regions Visited (9) 1800 Robots Destroyed (77) 385 Value Destroyed (2499) 2499 Prototype IDs (2) 40 Alien Tech Used (0) 0 Bonus (535) 535 TOTAL SCORE: 7759 Bonus ------- Follower Combat Kills 35 Entered DSFs 500 Cogmind --------- Core Integrity 0/1000 Matter 201/300 Energy 99/100 System Corruption 0% Temperature Cool (0) Movement Core (50) Location -5/Extension Parts ------- > --- POWER (2) -------- (None) > --- PROPULSION (9) --- (None) > --- UTILITY (4) ------ (None) > --- WEAPON (2) ------- (None) > --- INVENTORY (5) ---- Improved Deuterium Engine Angular Momentum Engine Light Angular Momentum Engine Improved Utility Shielding Heavy Plasma Cannon Peak State ------------ > --- POWER ------------ Angular Momentum Engine Neutrino Core > --- PROPULSION ------- Cesium-ion Thruster Cesium-ion Thruster Cesium-ion Thruster Cesium-ion Thruster Field Propulsion Drive Field Propulsion Drive Nuclear Pulse Array > --- UTILITY ---------- Medium Storage Unit Energy Well > --- WEAPON ----------- Improved Heavy Machine Gun Advanced Assault Cannon > --- INVENTORY -------- Improved Utility Shielding [Rating: 63] Favorites ----------- Power Ion Engine Engine Ion Engine Power Core Neutrino Core Propulsion Carbon-fiber Leg Treads Light Treads Leg Carbon-fiber Leg Wheel Wheel Flight Unit Cesium-ion Thruster Utility Large Storage Unit Device Heat Sink Storage Large Storage Unit Hackware Hacking Suite Protection Power Shielding Weapon Light Assault Rifle Energy Gun Beam Rifle Energy Cannon Heavy Plasma Cannon Ballistic Gun Light Assault Rifle Ballistic Cannon Flak Cannon Launcher Grenade Launcher Slashing Weapon Phasing Sabre Special Melee Weapon Improved Datajack Build | -11 -10 -10 -10 -8 -7 -6 -6 -5 -5 ------- Run | Yrd Mat Min Sub Mat Fac Fac DSF Fac Ext Slots Evolved 10 | . . . . 4 2 2 . 2 . Power 1 | . . . . . . 1 . . . Propulsion 7 | . . . . 2 2 1 . 2 . Utility 2 | . . . . 2 . . . . . Weapon . | . . . . . . . . . . Parts Attached 86 | 7 6 1 2 28 13 3 15 8 3 Power 12 | 1 1 . . 3 2 . 3 1 1 Engine 9 | 1 1 . . 3 2 . . 1 1 Core 3 | . . . . . . . 3 . . Reactor . | . . . . . . . . . . Propulsion 32 | 2 2 . . 12 4 1 8 3 . Treads 5 | 2 2 . . 1 . . . . . Leg 14 | . . . . 9 4 1 . . . Wheel 2 | . . . . 2 . . . . . Hover . | . . . . . . . . . . Flight 11 | . . . . . . . 8 3 . Utility 21 | 2 3 1 . 8 3 . 1 3 . Device 4 | 1 1 1 . . 1 . . . . Storage 7 | 1 2 . . 1 . . 1 2 . Processor . | . . . . . . . . . . Hackware 2 | . . . . . 2 . . . . Protection 8 | . . . . 7 . . . 1 . Artifact . | . . . . . . . . . . Weapon 21 | 2 . . 2 5 4 2 3 1 2 Energy Gun 2 | . . . . 2 . . . . . Energy Cannon 1 | . . . . . . . . . 1 Ballistic Gun 11 | 2 . . . 3 3 1 1 1 . Ballistic Cannon 2 | . . . . . 1 1 . . . Launcher 3 | . . . 2 . . . 1 . . Special Weapon . | . . . . . . . . . . Impact Weapon . | . . . . . . . . . . Slashing Weapon 1 | . . . . . . . . . 1 Piercing Weapon . | . . . . . . . . . . Special Melee Weapon 1 | . . . . . . . 1 . . Unidentified Prototypes 2 | . . 1 . . . . . 1 . Parts Lost 64 | . 3 . 1 19 17 . 12 4 8 Power 8 | . 1 . . 3 2 . 1 . 1 Propulsion 31 | . 1 . . 6 10 . 5 3 6 Utility 9 | . 1 . . 6 1 . 1 . . Weapon 16 | . . . 1 4 4 . 5 1 1 Highest Loss Streak 9 | . 2 . 1 5 5 . 9 3 5 To Critical Strikes . | . . . . . . . . . . Average Backups 11 | 1 6 12 12 13 16 15 11 1 2 Power . | . 1 1 1 . . . . . 1 Propulsion 2 | . 1 3 3 2 1 . . . . Utility 5 | . 1 4 5 6 8 9 8 1 . Weapon 2 | . 2 3 2 2 4 4 1 . . Tool/Special . | . . . . . . . . . . Unused Backups 15 | . . . . 5 . . 9 . 1 Power 2 | . . . . 1 . . . . 1 Propulsion 4 | . . . . 4 . . . . . Utility 8 | . . . . . . . 8 . . Weapon . | . . . . . . . . . . Tool/Special 1 | . . . . . . . 1 . . Average Slot Usage (%) 86 | . 97 100 99 84 89 56 48 62 42 Engine 9 | . 13 14 14 7 6 6 2 . . Treads 11 | . 26 28 28 1 . . . . . Leg 13 | . . . . 24 37 16 6 . . Flight 3 | . . . . . . . 12 41 26 Device 8 | . 13 14 14 7 . 6 2 . . Storage 10 | . 14 14 14 9 7 6 4 10 9 Hackware 3 | . . . . . 14 13 10 . . Protection 5 | . . . . 15 6 . . . . Ballistic Gun 16 | . 28 28 15 15 7 6 2 . . Ballistic Cannon 1 | . . . . . 5 . 2 3 . Peak Build Rating 63 | 7 8 16 16 31 39 29 56 63 53 Average Rating 21 | 5 7 13 15 24 32 20 29 51 34 On Entrance 20 | . 7 8 16 16 28 17 29 42 42 Avg Prop Armor Cover (%) 5 | 22 10 . . 10 6 . 6 6 4 Naked Turns 24 | . . . . . . . . . 24 Heaviest Build 61 | 14 29 29 30 61 60 58 58 35 33 Greatest Support 95 | 40 40 40 40 62 95 35 47 54 40 Greatest Overweight (x) 13 | 4 . . . 11 4 2 13 1 4 Average Overweight (x) . | . . . . . . 1 . . . Largest Inventory Capacity 20 | 8 15 15 15 20 20 20 20 15 10 Average Capacity 14 | 7 10 15 15 16 20 20 13 9 9 Most Carried 20 | 2 12 13 13 20 20 18 17 3 5 Average Carried 11 | 1 6 12 12 13 16 15 11 1 2 Final Capacity 20 | 8 15 15 15 20 20 20 5 10 5 Final Carried 20 | 2 12 13 12 20 15 17 4 2 5 Class Distribution -------------------- 45% | Mutant 28% | Scavenger-Mutant 18% | Hacker-Mutant 6% | Sprinter Dominant Class ---------------- Mutant | -10/Materials Mutant | -10/Mines Mutant | -10/Subcaves Scavenger-Mutant | -8/Materials Hacker-Mutant | -7/Factory Hacker-Mutant | -6/Factory Hacker-Mutant | -6/DSF Mutant | -5/Factory Sprinter | -5/Extension Resources | -11 -10 -10 -10 -8 -7 -6 -6 -5 -5 ----------- Run | Yrd Mat Min Sub Mat Fac Fac DSF Fac Ext Matter Collected 2715 | 286 264 40 64 955 704 . 177 167 58 Remotely 127 | . . . . . 72 . 55 . . Salvage Created 3083 | 104 442 45 97 1375 773 . 108 139 . Parts 153 | 3 28 2 8 79 28 . 3 2 . Haulers Intercepted 5 | . 1 . . 4 . . . . . Recyclers Shooed 6 | . 1 . . 1 4 . . . . Parts Field Recycled . | . . . . . . . . . . Retrieved Matter . | . . . . . . . . . . Parts Self-Destructed 5 | . . . 5 . . . . . . Prevented . | . . . . . . . . . . Parts Restored . | . . . . . . . . . . Kills | -11 -10 -10 -10 -8 -7 -6 -6 -5 -5 ------- Run | Yrd Mat Min Sub Mat Fac Fac DSF Fac Ext Combat Hostiles Destroyed 55 | . 9 1 3 25 14 . 3 . . Guns 43 | . 9 1 2 25 6 . . . . Cannons 9 | . . . . . 8 . 1 . . AOE 3 | . . . 1 . . . 2 . . Classes Destroyed 15 | 2 4 . 1 6 2 . . . . Worker 4 | . . . . 1 3 . . . . Builder 1 | . . . . 1 . . . . . Tunneler 2 | 1 . . . 1 . . . . . Hauler 5 | . 1 . . 4 . . . . . Recycler 6 | 1 1 . . . 3 . . 1 . Operator 1 | . . . . . 1 . . . . Watcher 2 | . 1 . . 1 . . . . . Swarmer 7 | . 3 . . 4 . . . . . Grunt 30 | . 6 1 1 11 11 . . . . Brawler 2 | . . . . 2 . . . . . Sentry 6 | . . . . 5 1 . . . . Specialist 4 | . . . . 1 . . 3 . . Hunter 3 | . . . . 2 1 . . . . Programmer 1 | . . . . . 1 . . . . Subdweller 3 | . . . 3 . . . . . . Best Kill Streak 6 | 2 3 1 3 6 5 . 2 1 . Combat Bots Only 5 | . 3 1 3 5 3 . 2 . . Max Kills in Single Turn 2 | 1 1 1 1 2 2 . 2 1 . Gunslinging . | . . . . . . . . . . Exploded 2 | . . . 1 . . . 2 . . Melee . | . . . . . . . . . . Uniques/NPCs Destroyed . | . . . . . . . . . . Combat | -11 -10 -10 -10 -8 -7 -6 -6 -5 -5 -------- Run | Yrd Mat Min Sub Mat Fac Fac DSF Fac Ext Hostile Shots Fired 643 | . 51 5 13 180 164 . 77 44 109 Missed 187 | . 12 1 3 41 52 . 23 17 38 Hits 456 | . 39 4 10 139 112 . 54 27 71 Melee 1 | . . . . . . . . . 1 Projectile 455 | . 39 4 10 139 112 . 54 27 70 Critical Strikes 18 | . . . 1 5 7 . 4 1 . Actively Blocked 1 | . . . . . 1 . . . . Part Disruptions 3 | . . . . . . . 3 . . Damage Taken 7943 | . 514 46 215 2143 1939 . 1381 351 1354 Core 2525 | . 35 12 44 378 474 . 570 46 966 Absorbed by Shields . | . . . . . . . . . . Redirected to Shielding 118 | . . . . 65 53 . . . . Core Remaining (%) 51 | 100 . . 63 31 32 . 32 . . Volleys Fired 328 | 4 56 5 9 133 92 . 19 10 . Largest 2 | 2 2 2 2 2 2 . 2 1 . Hottest 79 | 40 40 40 50 79 62 . 68 40 . Shots Fired 576 | 8 112 10 15 226 167 . 28 10 . Gun 488 | 8 112 10 9 225 106 . 18 . . Cannon 77 | . . . . . 61 . 6 10 . Launcher 11 | . . . 6 1 . . 4 . . Special . | . . . . . . . . . . Kinetic 539 | 8 112 10 9 199 167 . 24 10 . Thermal 26 | . . . . 26 . . . . . Explosive 11 | . . . 6 1 . . 4 . . Electromagnetic . | . . . . . . . . . . Robot Hit Streak 21 | 3 9 4 9 21 15 . 10 6 . Robot Miss Streak 13 | 1 6 4 1 10 13 . 4 1 . Penetration Max 1 | . . . . 1 . . . . . Secondary Targets 3 | . 1 1 . 1 . . . . . Max Gunslinging Chain 1 | . 1 1 . 1 . . . . . Shots Hit Robots 400 | 5 66 5 13 155 124 . 23 8 1 Core Hits 199 | 4 25 3 8 65 72 . 18 4 . Critical Kills 2 | . 1 . . 1 . . . . . Critical Parts Destroyed 3 | . . . . 2 1 . . . . Critical Strikes 6 | . 1 . . 4 1 . . . . Burn 1 | . . . . 1 . . . . . Destroy 5 | . 1 . . 3 1 . . . . Melee Attacks 4 | . . . . . . . 2 . 2 Impact . | . . . . . . . . . . Slashing 2 | . . . . . . . . . 2 Piercing . | . . . . . . . . . . Sneak Attacks 1 | . . . . . . . 1 . . Combat Hostiles . | . . . . . . . . . . Follow-up Attacks . | . . . . . . . . . . Damage Inflicted 6890 | 53 697 76 385 2797 2108 . 496 218 60 Guns 4835 | 53 697 67 62 2705 1023 . 228 . . Cannons 1184 | . . . . . 901 . 76 207 . Explosions 755 | . . . 323 60 180 . 192 . . Melee 60 | . . . . . . . . . 60 Ramming 56 | . . 9 . 32 4 . . 11 . Kinetic 5807 | 53 697 67 62 2493 1924 . 304 207 . Thermal 392 | . . . . 212 180 . . . . Explosive 575 | . . . 323 60 . . 192 . . Electromagnetic . | . . . . . . . . . . Impact . | . . . . . . . . . . Slashing 60 | . . . . . . . . . 60 Piercing . | . . . . . . . . . . Highest Corruption 1 | . . . . . 1 . 1 . . Average Corruption 1 | . . . . . 1 . 1 . . Corruption Purged . | . . . . . . . . . . Corruption Blocked . | . . . . . . . . . . Effects 2 | . . . . . . . 2 . . Matter Fused 1 | . . . . . . . 1 . . Data Loss (minor) 1 | . . . . . . . 1 . . Overload Shots . | . . . . . . . . . . Overflow Damage 125 | . . . . 25 99 . . 1 . Projectiles 3 | . . . . . 2 . . 1 . Explosions 122 | . . . . 25 97 . . . . Melee . | . . . . . . . . . . Knockbacks 38 | . . . . . 35 . . 3 . Impact . | . . . . . . . . . . Kinetic 37 | . . . . . 34 . . 3 . Secondary 1 | . . . . . 1 . . . . Self-Inflicted Damage 251 | . . . . 120 126 . . 5 . Shots 4 | . . . . 2 2 . . . . Rammed 3 | . . 1 . . . . . 2 . Targets Rammed 8 | . . 1 . 4 1 . . 2 . Kicked 5 | . . . . 4 1 . . . . Crushed . | . . . . . . . . . . Highest Temperature 206 | . 21 6 . 174 38 . 1 206 90 Average Temperature 42 | . 10 6 . 43 7 . 1 80 54 Received Heat Transfer 2067 | . 165 24 18 774 651 . 270 27 138 Siege Activations . | . . . . . . . . . . Martial Activations . | . . . . . . . . . . Shielding Activations . | . . . . . . . . . . Robots Disrupted . | . . . . . . . . . . Combat Hostiles . | . . . . . . . . . . Robots Corrupted . | . . . . . . . . . . Combat Hostiles . | . . . . . . . . . . Parts Fried . | . . . . . . . . . . Impact Corruptions . | . . . . . . . . . . Robots Melted . | . . . . . . . . . . Combat Hostiles . | . . . . . . . . . . Parts Melted 1 | . . . . 1 . . . . . Heat Transferred 717 | . . . . 617 100 . . . . Parts Sabotaged . | . . . . . . . . . . Parts Stolen . | . . . . . . . . . . Parts Stripped . | . . . . . . . . . . Power Chain Reactions . | . . . . . . . . . . Alert | -11 -10 -10 -10 -8 -7 -6 -6 -5 -5 ------- Run | Yrd Mat Min Sub Mat Fac Fac DSF Fac Ext Maximum Alert Level . | . . . . . . . . . . Low Security (%) 100 | 100 100 100 . 100 100 100 100 100 100 Level 1 . | . . . . . . . . . . Level 2 . | . . . . . . . . . . Level 3 . | . . . . . . . . . . Level 4 . | . . . . . . . . . . Level 5 . | . . . . . . . . . . High Security . | . . . . . . . . . . Max Security . | . . . . . . . . . . Peak Influence 181 | 5 90 45 . 181 136 39 109 51 15 Initial 74 | . . . . . 74 39 . 51 . Average 36 | . 14 3 . 67 66 15 36 10 1 Influence Increases 1937 | 10 243 71 . 835 528 3 206 7 34 Destroy 0b10 Robot/C 1060 | . 180 40 . 500 280 . 60 . . Destroy 0b10 Robot/NC 105 | 10 15 . . 40 35 . . 5 . Destroy Leader 264 | . 44 10 . 130 70 . 10 . . Allied During Kill 6 | . . 6 . . . . . . . Trap Triggered on 0b10 10 | . . . . 10 . . . . . Successful Hack 48 | . 4 . . 22 . 3 . . 19 Disable Machine 90 | . . 15 . 30 45 . . . . Destroy Structure 84 | . . . . 28 38 . 16 2 . Lose Combat Pursuer 270 | . . . . 75 60 . 120 . 15 Influence Decreases 1932 | 10 243 71 . 670 613 83 107 106 29 Entered New Map 180 | . . . . . 91 41 . 48 . Time Decay 1245 | 10 223 51 . 490 358 42 . 42 29 Lost Part 487 | . 20 . . 180 164 . 107 16 . Lost Ally 20 | . . 20 . . . . . . . Squads Dispatched 17 | . 2 . . 4 7 . 2 2 . Investigation 7 | . 2 . . 2 3 . . . . Extermination 2 | . . . . . 2 . . . . Reinforcement 8 | . . . . 2 2 . 2 2 . Assault . | . . . . . . . . . . Garrison . | . . . . . . . . . . Intercept . | . . . . . . . . . . Searches Triggered . | . . . . . . . . . . Construction Impeded . | . . . . . . . . . . Haulers Reinforced . | . . . . . . . . . . Active Scanning Responses . | . . . . . . . . . . Cargo Convoy Interrupts . | . . . . . . . . . . Stealth | -11 -10 -10 -10 -8 -7 -6 -6 -5 -5 --------- Run | Yrd Mat Min Sub Mat Fac Fac DSF Fac Ext Distress Signals 8 | . . . . 5 3 . . . . Communications Jammed . | . . . . . . . . . . Distress Signals . | . . . . . . . . . . Times Spotted 129 | . 17 2 3 40 25 . 17 8 17 Peak Tracking Total 15 | . 5 2 2 9 5 . 8 7 15 Tactical Retreats 12 | . . . . 3 4 . 4 . 1 Traps | -11 -10 -10 -10 -8 -7 -6 -6 -5 -5 ------- Run | Yrd Mat Min Sub Mat Fac Fac DSF Fac Ext Traps Triggered 5 | . 1 . . . 1 . 2 . 1 Indirectly . | . . . . . . . . . . Trap Hack Attempts . | . . . . . . . . . . Triggered . | . . . . . . . . . . Disarmed . | . . . . . . . . . . Reprogrammed 8 | . 2 . . 6 . . . . . Reused 1 | . . . . 1 . . . . . Traps Extracted . | . . . . . . . . . . Installed . | . . . . . . . . . . Triggered 1 | . . . . 1 . . . . . Machines | -11 -10 -10 -10 -8 -7 -6 -6 -5 -5 ---------- Run | Yrd Mat Min Sub Mat Fac Fac DSF Fac Ext Machines Disabled 7 | . 1 1 . 2 3 . . . . Max in Single Turn 3 | . 1 . . 1 3 . . . . Machines Repaired . | . . . . . . . . . . Machines Dismantled . | . . . . . . . . . . Machines Sabotaged . | . . . . . . . . . . Overloaded Fab Kills . | . . . . . . . . . . Hacking | -11 -10 -10 -10 -8 -7 -6 -6 -5 -5 --------- Run | Yrd Mat Min Sub Mat Fac Fac DSF Fac Ext Machines Accessed 23 | . 5 1 . 7 4 1 . 1 4 Terminals 19 | . 4 1 . 4 4 1 . 1 4 Fabricators . | . . . . . . . . . . Repair Stations . | . . . . . . . . . . Recycling Units 2 | . 1 . . 1 . . . . . Scanalyzers 2 | . . . . 2 . . . . . Garrison Access . | . . . . . . . . . . Total Hacks 52 | . 12 1 . 21 7 1 . 4 6 Successful 27 | . 6 . . 12 3 1 . 1 4 Failed 25 | . 6 1 . 9 4 . . 3 2 Catastrophic 4 | . 1 . . 2 1 . . . . Database Lockouts . | . . . . . . . . . . Manual . | . . . . . . . . . . Terminals 39 | . 9 1 . 11 7 1 . 4 6 Fabricators . | . . . . . . . . . . Repair Stations . | . . . . . . . . . . Recycling Units 6 | . 3 . . 3 . . . . . Scanalyzers 7 | . . . . 7 . . . . . Garrison Access . | . . . . . . . . . . Terminal Hacks 18 | . 5 . . 4 3 1 . 1 4 Open Door 3 | . . . . . . . . 1 2 Open DSF 3 | . . . . . 2 1 . . . Branch Access Points 1 | . 1 . . . . . . . . Emergency Access Points 1 | . . . . 1 . . . . . Alert Level 4 | . 1 . . 1 1 . . . 1 Locate Traps 2 | . 1 . . 1 . . . . . Reprogram Traps 2 | . 1 . . 1 . . . . . Hauler Manifests 1 | . 1 . . . . . . . . Zone Layout 1 | . . . . . . . . . 1 Fabricator Hacks . | . . . . . . . . . . Repair Station Hacks . | . . . . . . . . . . Recycling Unit Hacks 2 | . 1 . . 1 . . . . . Retrieve Components 2 | . 1 . . 1 . . . . . Scanalyzer 7 | . . . . 7 . . . . . Insert Component 1 | . . . . 1 . . . . . Analyze 1 | . . . . 1 . . . . . Retrieve Study 5 | . . . . 5 . . . . . Garrison Access Hacks . | . . . . . . . . . . Unauthorized Hacks . | . . . . . . . . . . Terminals . | . . . . . . . . . . Fabricators . | . . . . . . . . . . Repair Stations . | . . . . . . . . . . Recycling Units . | . . . . . . . . . . Scanalyzers . | . . . . . . . . . . Garrison Access . | . . . . . . . . . . Data Cores Recovered . | . . . . . . . . . . Used . | . . . . . . . . . . Hacking Detections 10 | . 1 . . 4 3 . . . 2 Full Trace Events 5 | . 1 . . 2 2 . . . . Feedback Events . | . . . . . . . . . . Feedback Blocked . | . . . . . . . . . . Robot Schematics Acquired . | . . . . . . . . . . Robots Built . | . . . . . . . . . . Authchips . | . . . . . . . . . . Time . | . . . . . . . . . . Total Robot Build Rating . | . . . . . . . . . . Part Schematics Acquired 1 | . . . . 1 . . . . . Parts Built . | . . . . . . . . . . Authchips . | . . . . . . . . . . Time . | . . . . . . . . . . Total Part Build Rating . | . . . . . . . . . . Part Studies Acquired 5 | . . . . 5 . . . . . Parts Repaired . | . . . . . . . . . . Time . | . . . . . . . . . . Parts Recycled . | . . . . . . . . . . Recycled Matter . | . . . . . . . . . . Retrieved Matter . | . . . . . . . . . . Retrieved Components 19 | . 10 . . 9 . . . . . Parts Scanalyzed 1 | . . . . 1 . . . . . Part Schematics Acquired 1 | . . . . 1 . . . . . Parts Damaged . | . . . . . . . . . . Bothacking | -11 -10 -10 -10 -8 -7 -6 -6 -5 -5 ------------ Run | Yrd Mat Min Sub Mat Fac Fac DSF Fac Ext Used RIF Installer . | . . . . . . . . . . Robots Hacked 1 | . . . . . . . 1 . . Non-combat . | . . . . . . . . . . Combat 1 | . . . . . . . 1 . . Robot Hacks Applied 1 | . . . . . . . 1 . . parse_system 1 | . . . . . . . 1 . . Relay Couplers Released . | . . . . . . . . . . Fabnet Peak Effective % . | . . . . . . . . . . Robots Rewired . | . . . . . . . . . . Allies Hacked . | . . . . . . . . . . Hacks Repelled . | . . . . . . . . . . Allies | -11 -10 -10 -10 -8 -7 -6 -6 -5 -5 -------- Run | Yrd Mat Min Sub Mat Fac Fac DSF Fac Ext Total Allies 7 | . . 3 . . . . . . 4 Largest Group 4 | . . 3 2 . . . . . 4 Highest-Rated Group 113 | . . 40 24 . . . . . 113 Highest-Rated Ally 31 | . . 16 16 . . . . . 31 Total Orders . | . . . . . . . . . . Ally Attacks 22 | . . 6 7 . . . . . 9 Total Damage 223 | . . 44 52 . . . . . 127 Kills 1 | . . 1 . . . . . . . Allies Corrupted . | . . . . . . . . . . Allies Melted . | . . . . . . . . . . Intel | -11 -10 -10 -10 -8 -7 -6 -6 -5 -5 ------- Run | Yrd Mat Min Sub Mat Fac Fac DSF Fac Ext Active Infowar (turns) 1593 | 6 62 759 225 541 . . . . . Sensors 1525 | . . 759 225 541 . . . . . Seismic 68 | 6 62 . . . . . . . . Robot Analysis Total . | . . . . . . . . . . Derelict Logs Recovered 2 | . . 2 . . . . . . . Drone Launches . | . . . . . . . . . . Drone Recoveries . | . . . . . . . . . . Exploration | -11 -10 -10 -10 -8 -7 -6 -6 -5 -5 ------------- Run | Yrd Mat Min Sub Mat Fac Fac DSF Fac Ext Turns Passed 5507 | 129 957 1015 225 1513 875 129 257 204 203 Spaces Moved 3565 | 71 472 624 125 709 437 59 194 354 520 Core 140 | 28 . . . 6 . . 54 . 52 Treads 1298 | 43 472 624 125 34 . . . . . Legs 1138 | . . . . 627 437 59 15 . . Wheels 42 | . . . . 42 . . . . . Hover . | . . . . . . . . . . Flight 947 | . . . . . . . 125 354 468 Fastest Speed 18 | 50 160 160 160 95 106 176 25 18 22 Average Speed 115 | 150 160 160 160 134 118 208 74 42 30 Slowest Speed 700 | 250 160 160 160 600 385 245 700 103 250 Overloaded Moves . | . . . . . . . . . . Propulsion Burnouts . | . . . . . . . . . . Robots Hopped 5 | . . . . . . . . 2 3 Potential Cave-ins . | . . . . . . . . . . Cave-ins Triggered . | . . . . . . . . . . Exploration Rate (%) 40 | 4 66 97 7 62 13 2 95 9 52 Regions Visited 9 Branch Regions 3 Pre-discovered Areas . | . . . . . . . . . . Known Exits Taken 2 | . 1 . . . . 1 . . . Unknown Exits Taken 6 | 1 . 1 1 1 1 . . 1 . Scrap Searched 1 | . . 1 . . . . . . . Spaces Dug . | . . . . . . . . . . Terrain Destroyed 119 | . . . 24 37 41 . 16 1 . Melee . | . . . . . . . . . . Projectile 2 | . . . . 1 . . . 1 . AOE 117 | . . . 24 36 41 . 16 . . Terrain Rammed . | . . . . . . . . . . Walls Destroyed . | . . . . . . . . . . Machines Disabled . | . . . . . . . . . . Actions | -11 -10 -10 -10 -8 -7 -6 -6 -5 -5 --------- Run | Yrd Mat Min Sub Mat Fac Fac DSF Fac Ext Total 4399 | 83 570 631 136 1040 641 64 277 396 561 Wait 303 | . 30 . 1 121 85 . 30 19 17 Move 3547 | 70 471 623 124 708 436 58 193 350 514 Hop 4 | . . . . . . . . 1 3 Pick Up 53 | 2 7 1 . 27 7 3 4 1 1 Fast Attach 41 | 7 3 . . 8 3 1 12 4 3 Attach 44 | . . . 1 17 14 1 5 5 1 Detach 6 | . . . . . 1 . . 2 3 Swap 18 | . 3 1 1 9 1 1 2 . . Drop 28 | . . . . 13 1 . 10 2 2 Fire 328 | 4 56 5 9 133 92 . 19 10 . Melee 4 | . . . . . . . 2 . 2 Ram 2 | . . . . . . . . 2 . Kick 5 | . . . . 4 1 . . . . Crush 1 | . . 1 . . . . . . . Escape Stasis 15 | . . . . . . . . . 15 Rewire . | . . . . . . . . . . Trap . | . . . . . . . . . . Miscellaneous . | . . . . . . . . . . Route ------- -11/Scrapyard -10/Materials (discovered 4 exits: [*Mat x2] / *Min x2) -10/Mines (discovered 3 exits: [*Mat x2] / [*Sub]) -10/Subcaves -8/Materials (discovered 2 exits: *Fac x2) -7/Factory -6/Factory -6/DSF -5/Factory -5/Extension History --------- Turn | Location | Event 10 | -11/Scrapyard | Discovered new exit (range 16) 130 | -11/Scrapyard | Entered Materials 211 | -10/Materials | Discovered new exit (range 14) 296 | -10/Materials | Discovered new exit (range 15) 303 | -10/Materials | Build established: Mutant 594 | -10/Materials | Discovered new exit (range 16) 852 | -10/Materials | Identified exit to Mines 1087 | -10/Materials | Entered Mines 1107 | -10/Mines | Learned 4 Materials zone layouts 1287 | -10/Mines | Discovered new exit (range 14) 1324 | -10/Mines | Found a damaged Exp. Sensor Array with a note attached 1340 | -10/Mines | Found Prototype Device 1341 | -10/Mines | Identified Exp. Sensor Array 1463 | -10/Mines | Assisted by bots powering up and referring to "LRC-V3" 1540 | -10/Mines | Discovered new exit (range 11) 1912 | -10/Mines | Learned Materials terminal intel 2101 | -10/Mines | Discovered new exit (range 3) 2102 | -10/Mines | Entered Subcaves 2102 | -10/Subcaves | Accompanied by 2 allies 2157 | -10/Subcaves | Discovered new exit (range 15) 2327 | -10/Subcaves | Entered Materials 2327 | -8/Materials | Evolved 4 slots: Propulsion x2, Utility x2 2329 | -8/Materials | Loaded intel: 12 terminal locations 2401 | -8/Materials | Lost 3 parts (2n1w) 2689 | -8/Materials | Lost 5 parts (1p2n2w) 2943 | -8/Materials | Discovered new exit (range 12) 2977 | -8/Materials | Build established: Scavenger-Mutant 2979 | -8/Materials | Core integrity fell below 50% 3544 | -8/Materials | Discovered new exit (range 14) 3840 | -8/Materials | Entered Factory 3840 | -7/Factory | Evolved 2 slots: Propulsion x2 4143 | -7/Factory | Build established: Hacker-Mutant 4300 | -7/Factory | Lost 4 parts (1p2n1w) 4442 | -7/Factory | Lost 5 parts (4n1w) 4484 | -7/Factory | Discovered new exit (range 14) 4541 | -7/Factory | Core integrity fell below 50% 4583 | -7/Factory | Lost 3 parts (2n1w) 4686 | -7/Factory | Lost 5 parts (1p2n1u1w) 4715 | -7/Factory | Entered another Factory area 4715 | -6/Factory | Evolved 2 slots: Power x1, Propulsion x1 4752 | -6/Factory | Identified exit to DSF 4844 | -6/Factory | Entered DSF 4903 | -6/DSF | Additional patrols routed to DSF 4995 | -6/DSF | Core integrity fell below 50% 5013 | -6/DSF | Lost 9 parts (1p2n1u5w) 5095 | -6/DSF | Discovered new exit (range 16) 5101 | -6/DSF | Entered Factory 5101 | -5/Factory | Evolved 2 slots: Propulsion x2 5143 | -5/Factory | Lost 3 parts (3n) 5305 | -5/Factory | Discovered new exit (range 6) 5305 | -5/Factory | Entered Extension 5328 | -5/Extension | Spotted B-75 Beast 5364 | -5/Extension | Rescued a captive Derelict 5365 | -5/Extension | Rescued a captive Derelict 5381 | -5/Extension | Rescued a captive Derelict 5382 | -5/Extension | Rescued a captive Derelict 5456 | -5/Extension | Lost 3 allies 5460 | -5/Extension | Lost 3 parts (2n1w) 5495 | -5/Extension | Core integrity fell below 50% 5502 | -5/Extension | Core integrity fell below 20% 5503 | -5/Extension | Lost 5 parts (1p4n) 5503 | -5/Extension | Spotted B-75 Beast 5508 | -5/Extension | Destroyed by S-27 Virus with Autogun Last Messages --------------- 05452_ Stasis field depleted. 05459_ Acquired Hvy. Plasma Cannon. 05461_ Penetrated by Slug. 05463_ Slug penetrates Wall. 05463_ Cesium-ion Thruster destroyed. 05463_ U-05 Engineer lays Concrete. 05464_ Neutrino Core destroyed. 05467_ Cesium-ion Thruster destroyed. 05467_ Field Propulsion Drive destroyed. 05472_ Nuclear Pulse Array destroyed. 05483_ Dropped Med. Storage Unit. 05484_ Dropped Energy Well. 05492_ Slug penetrates Wall. 05492_ Penetrated by Slug. 05497_ Knocked back. 05497_ Slug penetrates Wall. 05498_ Penetrated by Slug. 05500_ Slug penetrates Wall. 05502_ Penetrated by Slug. 05503_ Machine disabled. Map ----- +----------------------------------------------------+ | ??# #######????????????????????????????????? | | ??# #????????????????????????????????? | | ??# ##### #????????????????????????????????? | | ### #???# #????????????????????????????????? | | #???# #????????????????????????????????? | | +##### #???# #????????????????????????????????? | | ## #???# #????????????????????????????????? | | *### #???# #????????????????????????????????? | | #?# #???# #????????????????????????????????? | | #?# #???# #????????????????????????????????? | | ####?# #???# #????????????????????????????????? | | ?????# #???#!#????????????????????????????????? | | ?????# #####!#????????????????????????????????? | | ?????# #????????????????????????????????? | | ?????# #????????? ??????????????????????? | | ?????# #????????? +?????????????????????? | | ?????# #????????? #?????????????????????? | | ?????# #????????? #?????????????????????? | | ?????# "T" #????????? #?????????????????????? | | ?????# """ #????????? #?????????????????????? | | ?????########## #?######?? #?????????????????????? | | ????????????###Y### ## ### ###???????????????????? | | ???????????## " "" ""#???????????????????? | | ???????????#; R" sss " " #???????????????????? | | ???????????## s #???????????????????? | | ???????????#;BB s @ #???????????????????? | | ###########;;BB #???????????????????? | | u ?????????????????? | | ??????????????? | | ????????????? | | t ??????????? | | A BBt u u k ??????????? | | ############# BB ##########??????????? | | ????????????# #???????????????????? | | ????????????# #???????????????????? | | ????????????# #???????????????????? | | ????????????# #???????????????????? | | ?????????????#####T#"""#######???????????????????? | | ?????????????????????????????????????????????????? | | ?????????????????????????????????????????????????? | | | | | | | | | | | | | | | | | | | | | +----------------------------------------------------+ Best States ------------- Heat Dissipation 41 Energy Generation 32 Energy Capacity 865 Matter Stores 300 Matter Capacity 300 Sight Range 16 Robot Scan Range 20 Terrain Scan Density 10 Armor Coverage 300 Resistance: EM 15 Power Shielding 33 Propulsion Shielding 33 Utility Shielding 66 Evasion (%) 66 Recoil Reduction 3 Offensive Hacking 20 Item Schematics ----------------- Carbon-fiber Leg | -8/Materials | Scanalyzed Robot Schematics ------------------ None Fabricated ------------ Nothing Repaired ---------- Nothing Studied --------- Carbon-fiber Leg | -8/Materials | Hacked Imp. Ion Engine | -8/Materials | Hacked Aluminum Leg | -8/Materials | Hacked Titanium Leg | -8/Materials | Hacked Datajack | -8/Materials | Hacked Alien Tech Used ----------------- None Achievements -------------- Can't Catch Me Challenges ------------ None Game ------ Seed ThrowingTiamatCloak Manual? 0 Play Time 00:40:23 Cumulative 43.7 hours Start 2026.06.22 @ 15:13:36 End 2026.06.22 @ 15:52:59 Sessions 1 Manual Loads 0 Difficulty Rogue Special Mode None Game No. 81 Rogue 81 Adventurer 0 Explorer 0 Win Type - Total 0 Types 0/0/0/0/0/0/0/0/0/0 Lore% 22 Gallery% 23 Achievement% 20 Wizard Run 0 Options --------- Layout 0 ASCII 0 Keyboard 0 Movement Mouse Keybinds 0 Fullscreen 2 Font 24/Smallcaps Map View 76x50 Zoom Use 0% Tactical HUD 1 Map Filters NONE Filters NONE Steam 1 RUN: 0fed0a5b-5ec7-47fc-afbd-f1a3c704a14b